{"text_format":"3","workbook":"xlsx","n_sheets":1,"sheets":["Sheet1"],"not_rendered":{"defined_names":1},"read":"whole","date_system":"1900"}

{"sheet":"Sheet1","index":0,"n_rows":26,"n_cols":6,"rows_kept":26,"merged":[[1,4,1,5],[2,0,2,3],[2,4,2,5],[21,1,21,5],[23,1,23,5],[25,1,25,5]]}
[]
[{"$nulls":4},"Contractor's Name"]
["Hurricane Sally Repairs, Group 5, LOT 1 - W Street Tax Office Sign"]
["Bid Item No.","Bid Item Description","Quantity","Unit","Unit Price","Bid Price"]
[1,"Mobilization & Safety  (Include all equipment rental/pricing)",1,"LS",null,{"$f":"E5*C5","v":0}]
[2,"Detach & Reset Signage, 2 EA",1,"LS",null,{"$f":"E6*C6","v":0}]
[3,"Remove Existing EIFS System, 600 SF",1,"LS",null,0]
[{"$f":"A7+1","v":4},"Remove Existing Plywood Sheathing, 600 SF",1,"LS",null,0]
[5,"Remove and Replace Moisture Damaged Framing, Metal, 300 LF",1,"LS",null,0]
[6,"Install 1/2\" Plywood Sheating, 600 SF",1,"LS",null,0]
[7,"Install Moisture Barrier, 600 SF",1,"LS",null,0]
[8,"Install PVC Corner/Casing Beads (Include fasteners), 200 LF",1,"LS",null,0]
[9,"Install 1\" Expanded Polystyrene Board (Include fasteners), 600 SF",1,"LS",null,0]
[10,"Install Reinforcment Mesh, 600 SF",1,"LS",null,0]
[11,"Install Base and Finish Coat, 600 SF",1,"LS",null,0]
[12,"Prep and Coat, Elastomeric, 600 SF",1,"LS",null,0]
[13,"Project Closeout",1,"LS",null,0]
[{"$nulls":4},"W Street Tax/Probation Sign Bid Total",{"$f":"SUM(F5:F16)","v":0}]
[]
[]
["Notes"]
["1 - ","As required by FEMA, Contractor shall submit to the County a record of disposed materials. The record shall include site name, date of disposal, and GPS coordinates of the site. If the demolished materials are recycled, the Contractor shall submit a statement to the County certifying the materials have been recycled."]
[]
["2 - ","All items shall be bid as Furnish and Install, to include all appurtenances necessary to complete the project."]
[]
["3 - ","All material replacements shall be of like kind and quality, unless otherwise specified in the bid documents."]